bitfinex/quotes_ETHUSD_20250722
["timestamp","ask_amount","ask_price","bid_price","bid_amount"]
[1753218488861,4.662,3698.5,3698.2,3.17459875]
[1753218489060,4.662,3698.5,3698.2,0.4706]
[1753218489368,7.36579953,3698.5,3698.2,0.4706]
[1753218489549,4.111,3698.4,3698.2,0.4706]
[1753218489746,4.111,3698.4,3698.1,0.1352]
[1753218490258,0.55,3698.5,3698.1,0.6058]
[1753218490462,4.11,3698.4,3698.2,0.4706]
[1753218491065,4.11,3698.4,3698.1,0.1352]
[1753218492730,4.11,3698.4,3698.2,3.17459358]
[1753218492928,4.11,3698.4,3698.3,1.00511345]
[1753218493124,4.109,3698.5,3698.3,1.00511345]
[1753218493363,4.109,3698.5,3698.3,3.70905423]
[1753218494363,4.109,3698.5,3698.4,2.70387194]
[1753218494560,4.109,3698.5,3698.4,3.17447194]
[1753218494722,0.002,3698.7,3698.5,2.70378499]
[1753218494924,0.002,3698.7,3698.6,3.46572573]
[1753218495132,0.002,3698.7,3698.6,4.07072573]
[1753218495955,0.002,3698.7,3698.6,1.367]
[1753218496567,0.002,3698.7,3698.6,4.07072573]
[1753218497037,0.002,3698.7,3698.6,3.60012573]
[1753218497237,0.002,3698.7,3698.6,4.09776298]
[1753218497635,0.002,3698.7,3698.6,4.07072573]
[1753218500267,0.002,3698.7,3698.6,4.81501764]
[1753218500844,0.002,3698.7,3698.6,4.84205489]
[1753218501569,0.002,3698.7,3698.6,4.81501764]
[1753218502842,0.002,3698.7,3698.6,4.84205489]
[1753218503030,0.002,3698.7,3698.6,4.81501764]
[1753218505874,0.002,3698.7,3698.6,4.84205489]
[1753218509302,0.002,3698.7,3698.6,8.94805489]
[1753218509477,0.002,3698.7,3698.6,8.92101764]
[1753218514510,0.002,3698.7,3698.6,8.45041764]
[1753218514716,0.002,3698.7,3698.6,0.1344]
[1753218514888,0.4713,3698.7,3698.6,0.1344]
[1753218515309,0.002,3698.7,3698.6,0.1344]
[1753218515512,0.002,3698.7,3698.6,2.83812573]
[1753218516549,0.002,3698.7,3698.6,2.86516298]
[1753218517128,0.002,3698.7,3698.6,3.46627019]
[1753218517438,0.002,3698.7,3698.6,8.77587019]
[1753218517640,1e-08,3698.7,3698.6,11.74883294]
[1753218518207,0.002,3699.3,3699.2,2.70328719]
[1753218518444,1e-08,3699.3,3699.2,10.59782006]
[1753218518618,1e-08,3699.3,3699.2,12.03530647]
[1753218518816,1e-08,3699.3,3699.2,12.47740647]
[1753218519234,1e-08,3699.5,3699.4,2.70314104]
[1753218519461,1e-08,3699.5,3699.4,12.1075772]
[1753218519784,1e-08,3699.5,3699.4,12.65704579]
[1753218520128,0.002,3700.2,3700.1,3.53212965]
[1753218520458,0.002,3700.2,3700.1,10.66415594]
[1753218520758,0.002,3700.2,3700.1,11.21362965]
[1753218520912,0.002,3700.2,3700.1,12.60526449]
[1753218533429,0.002,3700.2,3700.1,8.05816449]
[1753218533641,0.002,3700.2,3700.1,4.2384]
[1753218533876,0.4539,3700.2,3700.1,0.1344]
[1753218534173,0.8539,3700.2,3700.1,0.1344]
[1753218535151,3.55645661,3700.2,3700.1,0.1344]
[1753218536970,4.10645661,3700.2,3700.1,0.1344]
[1753218537168,0.55,3699.9,3699.4,3.0]
[1753218537465,0.4519,3699.8,3699.6,0.1344]
[1753218537782,0.55,3700.1,3699.6,0.1344]
[1753218538079,0.4519,3699.9,3699.8,0.1344]
[1753218540387,0.8519,3699.9,3699.8,0.1344]
[1753218542793,0.4,3699.9,3699.8,0.1344]
[1753218542985,0.8519,3699.9,3699.8,0.1344]
[1753218545698,0.8519,3699.9,3699.8,2.8372488]
[1753218546009,0.8519,3699.9,3699.8,0.1344]
[1753218546971,0.8519,3699.9,3699.8,2.8372488]
[1753218547177,0.4519,3699.9,3699.8,2.8372488]
[1753218547577,0.952,3700.2,3700.1,2.70262965]
[1753218548183,1.4039,3700.2,3700.1,2.70262965]
[1753218548821,0.55,3700.1,3700.0,2.70267191]
[1753218549173,0.4519,3700.1,3699.9,2.70274784]
[1753218549487,0.4519,3700.1,3700.0,2.7027027]
[1753218551316,0.402,3700.2,3700.1,2.70262965]
[1753218552292,0.002,3700.2,3700.1,2.70262965]
[1753218552616,0.002,3700.2,3700.1,3.39100945]
[1753218552983,0.002,3700.2,3700.1,7.49500945]
[1753218553882,0.002,3700.2,3700.1,7.96870945]
[1753218554825,0.002,3700.2,3700.1,7.49500945]
[1753218555789,0.002,3700.2,3700.1,7.96870945]
[1753218563726,0.002,3700.2,3700.1,7.95400945]
[1753218569042,0.002,3700.2,3700.1,8.74390945]
[1753218570141,0.002,3700.2,3700.1,11.74390945]
[1753218571512,0.002,3700.7,3700.6,2.70226449]
[1753218571699,0.002,3700.7,3700.6,8.26174817]
[1753218571900,0.002,3700.7,3700.6,8.69372553]
[1753218573438,1e-08,3700.7,3700.6,11.69372553]
[1753218573651,1e-08,3701.0,3700.9,6.45664544]
[1753218573841,1e-08,3701.0,3700.9,10.55964544]
[1753218574042,1e-08,3701.0,3700.9,12.26943539]
[1753218574197,1e-08,3701.0,3700.9,12.72843539]
[1753218574710,0.002,3701.7,3701.5,6.45410745]
[1753218574916,0.002,3701.7,3701.5,10.55710745]
[1753218575137,0.002,3701.7,3701.5,11.01610745]
[1753218575338,0.002,3701.7,3701.5,12.38788768]
[1753218575643,0.002,3701.7,3701.6,6.45403447]
[1753218575839,0.002,3701.7,3701.6,6.91303447]
[1753218576047,1e-08,3701.7,3701.6,6.91303447]
[1753218576909,0.002,3702.2,3702.1,6.5212696]
[1753218577134,0.002,3702.2,3702.1,11.54552229]
[1753218577342,0.002,3702.2,3702.1,12.00452229]
[1753218578343,0.4,3703.7,3702.2,5.70109664]
[1753218578544,1e-08,3702.3,3702.2,6.92129664]
[1753218580030,0.002,3703.8,3703.7,2.7000027]
[1753218580324,0.002,3703.8,3703.7,7.4451342]
[1753218580524,0.002,3703.8,3703.7,7.41813418]
[1753218580758,0.002,3703.8,3703.7,4.102]
[1753218580977,0.002,3703.8,3703.7,4.12900002]
[1753218581659,0.002,3703.8,3703.7,6.82900272]
[1753218581955,0.002,3703.8,3703.7,6.8020027]
[1753218582261,0.002,3703.8,3703.7,4.102]
[1753218582460,0.002,3703.8,3703.7,4.12900002]
[1753218582682,0.002,3703.8,3701.8,6.583]
[1753218582683,0.4,3703.7,3702.7,2.70073189]
[1753218582967,3.16292888,3703.6,3702.9,3.0]
[1753218583124,0.4628,3703.5,3703.0,4.101]
[1753218583521,0.4628,3703.5,3702.9,3.0]
[1753218583723,0.4628,3703.5,3701.9,0.7869]
[1753218583724,0.55,3703.3,3701.9,0.7869]
[1753218583967,3.10045419,3703.1,3702.8,0.1344]
[1753218584164,0.4628,3703.0,3702.8,0.1344]
[1753218584775,0.4628,3702.9,3702.8,0.1344]
[1753218585464,0.4628,3702.9,3702.8,4.2354]
[1753218585680,0.4628,3702.9,3701.1,1.2419]
[1753218585681,0.8628,3702.9,3701.1,1.2419]
[1753218585886,2.70078017,3702.7,3701.8,2.70134186]
[1753218586036,2.70078017,3702.7,3701.9,4.39814734]
[1753218586250,0.4628,3702.6,3701.9,4.39814734]
[1753218586457,0.4628,3702.6,3701.9,0.29714734]
[1753218586694,0.4628,3702.6,3702.0,4.102]
[1753218587702,0.4628,3702.6,3701.9,2.9714488]
[1753218587884,0.4628,3702.6,3702.1,4.102]
[1753218590202,0.55,3702.5,3701.9,0.27013419]
[1753218590402,0.55,3702.4,3702.0,4.105]
[1753218590703,0.4427,3702.3,3702.0,4.105]
[1753218591006,0.4427,3702.2,3702.0,4.105]
[1753218591211,0.4,3702.5,3702.0,4.78564441]
[1753218591369,0.4,3702.5,3702.2,2.70104797]
[1753218591571,0.4,3702.5,3702.3,4.104]
[1753218591806,0.4,3702.5,3702.3,6.80501119]
[1753218592399,0.4,3702.5,3702.4,4.106]
[1753218592902,0.8427,3702.5,3702.4,4.106]
[1753218594101,0.8427,3702.5,3702.4,6.80695073]
[1753218595667,0.8427,3702.5,3702.4,6.94135073]
[1753218595873,0.4,3702.5,3702.4,6.94135073]
[1753218596105,0.002,3702.6,3702.5,2.70087778]
[1753218596304,0.002,3702.6,3702.5,2.72788655]
[1753218597979,0.002,3702.6,3702.5,3.19748655]
[1753218598927,0.4427,3703.6,3703.3,2.70027888]
[1753218599209,0.4427,3703.6,3703.4,0.1344]
[1753218599413,0.4427,3703.5,3703.4,0.1344]
[1753218600184,0.55,3703.7,3703.5,2.70013957]
[1753218600423,0.55,3703.7,3703.4,2.83456552]
[1753218600583,0.4427,3703.6,3703.4,2.83456552]
[1753218601391,1.3927,3703.5,3703.4,0.1344]
[1753218601589,0.55,3703.0,3702.8,4.105]
[1753218601805,0.8427,3702.9,3702.7,4.2384]
[1753218602117,0.4427,3702.8,3702.7,0.1344]
[1753218602290,0.9927,3702.8,3702.4,4.106]
[1753218602509,0.55,3702.8,3702.4,4.2404]
[1753218602694,0.4427,3702.7,3702.4,4.2404]
[1753218602917,0.4427,3702.6,3702.5,2.70084358]
[1753218603211,0.4427,3702.6,3702.4,6.94133524]
[1753218603516,0.4427,3702.5,3702.4,6.94133524]
[1753218604208,0.4427,3702.5,3702.4,4.2404]
[1753218604513,0.4427,3702.5,3702.1,2.70115434]
[1753218604514,0.8427,3702.5,3702.2,4.106]
[1753218604814,0.4,3702.5,3702.2,6.94148457]
[1753218604985,0.4427,3702.4,3702.2,6.94148457]
[1753218605317,0.4427,3702.3,3702.2,6.94148457]
[1753218605750,0.4427,3702.3,3702.2,4.2404]
[1753218606019,0.4427,3702.3,3702.2,2.83549664]
[1753218606181,0.4427,3702.3,3702.2,6.94149664]
[1753218607015,0.4,3702.5,3702.3,2.70095147]
[1753218607217,0.95,3702.5,3702.2,6.94147781]
[1753218607420,0.4427,3702.4,3702.2,6.94147781]
[1753218607583,0.4427,3702.4,3702.3,2.70102368]
[1753218609117,0.4427,3702.4,3702.2,6.94148593]
[1753218609322,0.4427,3702.4,3702.3,2.70102368]
[1753218610992,0.4427,3702.4,3702.2,6.94147141]
[1753218611192,0.4427,3702.4,3702.3,2.70102368]
[1753218612703,0.4427,3702.4,3702.2,6.94148791]
[1753218613220,0.4427,3702.4,3702.3,4.102]
[1753218613695,0.4427,3702.4,3702.3,6.80302368]
[1753218614410,0.95,3702.5,3702.3,6.80302368]
[1753218614727,1.3927,3702.5,3702.3,4.102]
[1753218614924,0.4427,3702.4,3702.3,4.102]
[1753218615131,0.4427,3702.4,3702.3,6.80302368]
[1753218616639,0.4427,3702.4,3702.3,4.102]
[1753218616997,0.4427,3702.4,3702.3,6.80302368]
[1753218617198,0.4427,3702.4,3702.3,4.102]
[1753218617897,0.4427,3702.4,3702.3,6.80302368]
[1753218618918,0.4427,3702.4,3702.3,6.80202368]
[1753218620634,0.95,3702.5,3702.4,2.70095073]
[1753218620799,1.4197,3702.5,3702.4,2.70095073]
[1753218622627,1.4197,3702.5,3702.4,4.101]
[1753218623330,1.4197,3702.5,3702.4,6.80195073]
[1753218623725,1.4197,3702.5,3702.4,4.101]
[1753218623926,1.4197,3702.5,3702.4,6.80195073]
[1753218624735,1.4197,3702.5,3702.4,4.101]
[1753218626921,1.4197,3702.5,3702.4,6.80195073]
[1753218628141,0.95,3702.5,3702.4,6.80195073]
[1753218628542,0.95,3702.5,3702.4,4.101]
[1753218628944,0.95,3702.5,3702.4,6.80195073]
[1753218630541,0.95,3702.5,3702.4,4.101]
[1753218631062,0.55,3702.5,3702.4,4.101]
[1753218631543,0.55,3702.5,3702.4,6.80195073]
[1753218631747,0.55,3702.5,3702.4,4.101]
[1753218632325,0.55,3702.5,3702.4,6.80195073]
[1753218637853,0.002,3702.6,3702.5,2.70087778]
[1753218638149,0.002,3702.6,3702.5,4.101]
[1753218638313,0.002,3702.6,3702.5,6.80187778]
[1753218642645,0.002,3702.6,3702.5,4.101]
[1753218644849,0.002,3702.6,3702.5,6.80187778]
[1753218646852,0.002,3702.6,3702.5,4.101]
[1753218649252,0.002,3702.6,3702.3,0.001]
[1753218649457,3.65095073,3702.4,3702.3,0.001]
[1753218649821,4.08565073,3702.4,3702.3,0.001]
[1753218657041,8.18665073,3702.4,3702.3,0.001]
[1753218660663,6.80195073,3702.4,3702.3,0.001]
[1753218660871,7.48635073,3702.4,3702.3,0.001]
[1753218661438,3.38535073,3702.4,3702.3,0.001]
[1753218661635,0.6844,3702.4,3702.3,0.001]
[1753218661935,0.002,3702.6,3702.4,0.8314]
[1753218662140,0.002,3702.6,3702.4,3.53234219]
[1753218662383,0.002,3702.6,3702.5,0.475]
[1753218662846,0.002,3702.6,3702.5,3.17587778]
[1753218663047,0.002,3702.6,3702.5,0.475]
[1753218664253,3.25095073,3702.4,3702.3,0.001]
[1753218664447,3.68565073,3702.4,3702.3,0.001]
[1753218665873,0.55,3702.4,3702.3,0.001]
[1753218666473,3.25095073,3702.4,3702.3,0.001]
[1753218668997,0.55,3702.4,3702.3,0.001]
[1753218670093,3.25095073,3702.4,3702.3,0.001]
[1753218670394,0.55,3702.4,3702.3,0.001]
[1753218670688,3.25095073,3702.4,3702.3,0.001]
[1753218675394,0.1344,3702.5,3702.3,0.8101]
[1753218675695,4.102,3702.6,3702.4,0.475]
[1753218675990,4.652,3702.6,3702.5,0.475]
[1753218677092,4.102,3702.6,3702.5,0.475]
[1753218678904,4.102,3702.6,3702.5,0.476]
[1753218681204,0.002,3702.6,3702.5,0.476]
[1753218682301,0.002,3702.6,3702.5,0.001]
[1753218689390,0.002,3702.6,3702.5,0.4601]
[1753218690405,0.002,3702.6,3702.5,3.16097778]
[1753218690608,0.002,3702.6,3702.5,4.32412556]
[1753218690815,0.002,3702.6,3702.5,4.48553433]
[1753218693991,0.002,3702.6,3702.5,7.48553433]
[1753218694192,0.002,3702.6,3702.5,7.45852556]
[1753218695102,6.80001292,3703.7,3703.2,0.7501]
[1753218695624,6.80001292,3703.7,3703.3,0.5935]
[1753218695822,4.1,3703.7,3703.3,0.5935]
[1753218696719,6.80000706,3703.7,3703.3,0.5935]
[1753218698721,4.1,3703.7,3703.3,0.5935]
[1753218701499,4.1,3703.7,3703.3,3.29379433]
[1753218702295,4.1,3703.7,3703.3,0.5935]
[1753218703632,0.55,3703.7,3703.3,0.5935]
[1753218709449,2.70008184,3703.6,3703.3,0.5935]
[1753218709641,3.25001338,3703.7,3703.3,0.5935]
[1753218710614,0.55,3703.7,3703.3,0.5935]
[1753218712272,3.25000627,3703.7,3703.3,0.5935]
[1753218712433,3.25000627,3703.7,3703.3,0.1344]
[1753218713466,0.55,3703.7,3703.3,0.1344]
[1753218714636,3.25000623,3703.7,3703.3,0.1344]
[1753218714838,0.55,3703.1,3702.5,0.8258]
[1753218715084,0.002,3703.4,3703.0,2.70046772]
[1753218715368,0.002,3703.4,3703.1,0.4585]
[1753218715369,0.552,3703.4,3703.1,0.4585]
[1753218715563,3.25222889,3703.4,3703.1,0.4585]
[1753218715743,0.002,3703.4,3703.1,3.15889558]
[1753218715948,0.002,3703.4,3703.2,0.5929]
[1753218717244,0.002,3703.4,3703.3,0.4585]
[1753218719177,0.002,3703.4,3703.2,0.1344]
[1753218719336,0.002,3703.4,3703.3,3.15879433]
[1753218719534,0.002,3703.4,3703.3,0.4585]
[1753218720068,0.002,3703.4,3703.2,2.83474645]
[1753218720243,0.002,3703.4,3703.2,0.1344]
[1753218720439,0.002,3703.4,3703.2,2.8347611]
[1753218721953,0.002,3703.4,3703.3,2.70029433]
[1753218722140,0.002,3703.4,3703.3,7.93425649]
[1753218722340,0.002,3703.4,3703.3,8.69765649]
[1753218722742,0.002,3703.8,3703.7,2.7000027]
[1753218722941,0.002,3703.8,3703.7,3.4743027]
[1753218723198,0.002,3703.8,3703.7,4.0672027]
[1753218723780,0.002,3703.8,3703.7,5.14590132]
[1753218724071,0.002,3703.8,3703.7,9.24290132]
[1753218724474,0.002,3703.8,3703.7,5.14590132]
[1753218724664,0.002,3703.8,3703.7,9.24290132]
[1753218726861,0.002,3703.8,3703.7,1.98739862]
[1753218727060,0.002,3703.8,3703.7,0.1344]
[1753218727261,0.471,3703.8,3703.4,4.097]
[1753218727461,0.471,3703.8,3703.5,0.1344]
[1753218728275,0.469,3703.7,3703.5,0.1344]
[1753218729257,0.002,3703.8,3703.5,0.1344]
[1753218729474,0.471,3703.8,3703.5,0.1344]
[1753218730681,1.021,3703.8,3703.5,0.1344]
[1753218732090,3.72096847,3703.8,3703.5,0.1344]
[1753218732586,0.469,3703.7,3703.5,0.1344]
[1753218732768,3.71903187,3703.7,3703.5,0.1344]
[1753218732969,0.469,3703.6,3703.5,0.1344]
[1753218733168,3.1690756,3703.6,3703.5,0.1344]
[1753218733569,0.469,3703.6,3703.5,0.1344]
[1753218735389,3.1690756,3703.6,3703.5,0.1344]
[1753218735595,0.469,3703.6,3703.5,0.1344]
[1753218735992,0.55,3703.7,3703.5,0.1344]
[1753218736394,1.019,3703.7,3703.5,0.1344]
[1753218736605,3.71900557,3703.7,3703.5,0.1344]
[1753218737606,1.019,3703.7,3703.5,0.1344]
[1753218737810,3.71900416,3703.7,3703.5,0.1344]
[1753218738007,1.019,3703.7,3703.5,0.1344]
[1753218738208,3.7190047,3703.7,3703.5,0.1344]
[1753218739286,2.7000756,3703.6,3703.5,0.1344]
[1753218739481,0.4395,3703.6,3703.5,0.1344]
[1753218740708,0.55,3703.7,3703.5,0.1344]
[1753218740878,0.55,3703.7,3703.5,0.5921]
[1753218742318,0.55,3703.7,3703.5,0.1344]
[1753218744613,0.002,3703.8,3703.7,2.7000027]
[1753218744812,0.002,3703.8,3703.6,0.4577]
[1753218745010,0.002,3703.8,3703.5,0.1344]
[1753218746131,0.002,3703.8,3703.5,0.5921]
[1753218749702,0.002,3703.8,3703.5,3.29224277]
[1753218750099,0.002,3703.8,3703.5,0.5921]
[1753218750535,0.002,3703.8,3703.5,0.1344]
[1753218750889,0.002,3703.8,3703.4,0.001]
[1753218750890,0.55,3703.6,3703.4,0.001]
[1753218751089,0.5739,3703.5,3703.4,0.001]
[1753218751296,4.646,3703.5,3703.4,0.001]
[1753218751598,7.7856485,3703.5,3703.4,0.001]
[1753218751810,7.9200485,3703.5,3703.4,0.001]
[1753218752924,5.2199,3703.5,3703.4,0.001]
[1753218753099,7.9200485,3703.5,3703.4,0.001]
[1753218753719,4.7804,3703.5,3703.4,0.001]
[1753218753920,4.646,3703.5,3703.4,0.001]
[1753218755520,7.7856485,3703.5,3703.4,0.001]
[1753218755898,4.646,3703.5,3703.4,0.001]
[1753218756325,7.3461485,3703.5,3703.4,0.001]
[1753218757504,7.7856485,3703.5,3703.4,0.001]
[1753218759594,8.1856485,3703.5,3703.4,0.001]
[1753218760304,0.55,3703.5,3703.4,0.001]
[1753218760505,4.646,3703.5,3703.4,0.001]
[1753218761423,0.55,3703.5,3703.4,0.001]
[1753218761607,4.646,3703.5,3703.4,0.001]
[1753218762332,0.55,3703.5,3703.4,0.001]
[1753218762634,0.002,3703.8,3703.7,2.7000027]
[1753218762802,0.002,3703.8,3703.5,0.7989]
[1753218763126,0.002,3703.8,3703.7,0.1344]
[1753218764431,0.002,3703.8,3703.7,0.5921]
[1753218765002,0.002,3703.8,3703.7,0.1344]
[1753218769736,3.2501485,3703.5,3703.4,0.001]
[1753218770043,3.7085485,3703.5,3703.4,0.001]
[1753218771644,1.0084,3703.5,3703.4,0.001]
[1753218772344,3.2501485,3703.5,3703.4,0.001]
[1753218772545,7.8045485,3703.5,3703.4,0.001]
[1753218772729,7.9389485,3703.5,3703.4,0.001]
[1753218775155,5.2388,3703.5,3703.4,0.001]
[1753218775939,7.9389485,3703.5,3703.4,0.001]
[1753218776554,3.3845485,3703.5,3703.4,0.001]
[1753218776853,3.8429485,3703.5,3703.4,0.001]
[1753218779137,7.9389485,3703.5,3703.4,0.001]
[1753218781360,5.2388,3703.5,3703.4,0.001]
[1753218781733,4.7804,3703.5,3703.4,0.001]
[1753218785146,3.3845485,3703.5,3703.4,0.001]
[1753218785374,7.9389485,3703.5,3703.4,0.001]
[1753218786376,5.2388,3703.5,3703.4,0.001]
[1753218786871,0.002,3703.8,3703.4,0.4496]
[1753218787072,4.096,3703.7,3703.5,0.1344]
[1753218787272,4.096,3703.7,3703.6,0.4486]
[1753218787453,4.096,3703.7,3703.5,0.1344]
[1753218787654,0.55,3703.6,3703.4,0.001]
[1753218788977,4.646,3703.5,3703.4,0.001]
[1753218789155,7.8045485,3703.5,3703.4,0.001]
[1753218790284,7.3461485,3703.5,3703.4,0.001]
[1753218790459,7.8045485,3703.5,3703.4,0.001]
[1753218790783,4.646,3703.5,3703.4,0.001]
[1753218791863,7.3461485,3703.5,3703.4,0.001]
[1753218792858,4.646,3703.5,3703.4,0.001]
[1753218793184,7.3461485,3703.5,3703.4,0.001]
[1753218793684,4.646,3703.5,3703.4,0.001]
[1753218795245,7.3461485,3703.5,3703.4,0.001]
[1753218795447,4.646,3703.5,3703.4,0.001]
[1753218795751,7.3461485,3703.5,3703.4,0.001]
[1753218796850,7.8045485,3703.5,3703.4,0.001]
[1753218797558,4.646,3703.5,3703.4,0.001]
[1753218799680,0.1344,3703.6,3703.4,0.001]
[1753218799884,4.096,3703.5,3703.4,3.15812141]
[1753218800064,4.096,3703.5,3703.4,0.4579]
[1753218804993,0.55,3703.7,3703.4,0.4579]
[1753218805159,4.096,3703.6,3703.4,0.4579]
[1753218807229,6.79608331,3703.6,3703.4,0.001]
[1753218807586,3.2501485,3703.5,3703.4,0.001]
[1753218807794,3.6841485,3703.5,3703.4,0.001]
[1753218816306,6.6841485,3703.5,3703.4,0.001]
[1753218818025,10.7801485,3703.5,3703.4,0.001]
[1753218818605,0.002,3703.6,3703.4,0.001]
[1753218818812,4.095,3703.5,3703.4,0.001]
[1753218819032,4.645,3703.5,3703.4,0.001]
[1753218819238,7.3451485,3703.5,3703.4,0.001]
[1753218819540,0.002,3703.6,3703.5,0.7804]
[1753218819711,4.097,3703.6,3703.5,1.2373]
[1753218819908,4.097,3703.6,3703.5,1.64459888]
[1753218821261,4.097,3703.6,3703.5,1.2373]
[1753218825150,0.002,3703.6,3703.5,1.2373]
[1753218825324,0.002,3703.6,3703.5,3.9374485]
[1753218825516,0.002,3703.6,3703.5,4.0718485]
[1753218826346,0.002,3703.6,3703.5,7.0718485]
[1753218826551,0.002,3703.6,3703.5,8.05185678]
[1753218827050,0.002,3703.8,3703.7,6.4804027]
[1753218827552,0.002,3703.8,3703.7,11.1693027]
[1753218828346,0.002,3705.0,3703.7,11.1693027]
[1753218828347,0.1344,3705.5,3704.6,0.8287]
[1753218828547,4.2294,3705.5,3704.6,0.8287]
[1753218828748,0.55,3705.4,3704.7,0.4595]
[1753218829051,4.094,3705.9,3705.0,0.8287]
[1753218829225,0.55,3705.8,3705.2,2.83330964]
[1753218829418,2.69794815,3706.6,3705.2,3.66200964]
[1753218829618,4.094,3706.6,3705.2,4.14849873]
[1753218829868,2.83227065,3706.7,3705.3,0.8287]
[1753218830015,2.83227065,3706.7,3705.2,3.62088909]
[1753218830016,2.69789874,3706.6,3705.9,0.8287]
[1753218830221,0.55,3706.5,3706.0,0.5939]
[1753218830513,0.1344,3706.7,3706.1,0.4595]
[1753218830740,2.69767542,3706.9,3706.1,0.4595]
[1753218830930,2.69787541,3706.7,3706.3,0.1344]
[1753218831149,2.69789428,3706.6,3706.3,0.1344]
[1753218831446,2.69831947,3706.1,3705.6,0.8287]
[1753218831719,2.69831947,3706.1,3705.7,0.1344]
[1753218831875,2.69834447,3706.0,3705.7,0.5939]
[1753218832079,2.69834447,3706.0,3705.4,4.094]
[1753218832080,2.69847266,3705.8,3705.3,0.7813]
[1753218832228,0.9935,3706.2,3705.5,0.1344]
[1753218832229,2.69858273,3705.7,3705.5,0.1344]
[1753218832431,3.24845456,3705.9,3705.5,0.1344]
[1753218832624,2.69848137,3705.8,3705.5,0.1344]
[1753218833059,2.69842391,3705.9,3705.5,0.5939]
[1753218833257,2.69848674,3705.8,3705.5,0.5939]
[1753218833556,0.55,3706.0,3704.9,4.094]
[1753218833765,0.9935,3705.7,3705.1,0.1344]
[1753218833928,2.69882583,3705.4,3705.1,0.1344]
[1753218834560,3.69206313,3705.7,3705.1,0.1344]
[1753218834770,2.6987666,3705.4,3705.1,0.1344]
[1753218835068,2.69884943,3705.3,3705.1,0.1344]
[1753218835229,2.69878924,3705.4,3705.1,0.1344]
[1753218836945,2.69883695,3705.3,3705.1,0.1344]
[1753218837877,2.69878104,3705.4,3705.1,0.1344]
[1753218838181,2.6986183,3705.6,3705.1,0.1344]
[1753218838382,2.69885361,3705.3,3705.1,0.1344]
[1753218838946,2.69878196,3705.4,3705.1,0.1344]
[1753218839382,2.6988426,3705.3,3705.1,0.1344]
[1753218839770,2.69878009,3705.4,3705.1,0.1344]
[1753218840172,0.55,3705.7,3705.1,0.1344]
[1753218840477,4.643,3705.7,3705.2,0.8177]
[1753218840984,2.69872843,3705.5,3705.2,0.8177]
[1753218841156,2.69876764,3705.4,3705.2,0.8177]
[1753218841360,2.69868673,3705.6,3705.3,0.4595]
[1753218841712,2.69863827,3705.6,3705.2,0.8177]
[1753218841852,3.24859518,3705.7,3705.2,0.8177]
[1753218842052,2.6986183,3705.6,3705.2,0.8177]
[1753218842248,2.69871965,3705.5,3705.2,0.8177]
[1753218842453,2.69862026,3705.6,3705.2,1.2772]
[1753218842864,0.55,3705.7,3705.2,0.8177]
[1753218843091,2.69868468,3705.6,3705.2,1.2772]
[1753218843308,0.55,3705.7,3705.3,0.4595]
[1753218843309,3.24857599,3705.7,3705.3,0.4595]
[1753218843481,2.69862972,3705.6,3705.3,0.4595]
[1753218843878,2.69880966,3705.4,3705.2,0.8177]
[1753218844190,2.69862946,3705.6,3705.2,0.8177]
[1753218844403,2.69862946,3705.6,3705.2,1.2772]
[1753218844580,2.69869135,3705.5,3705.2,1.2772]
[1753218845112,0.55,3705.7,3705.2,1.2772]
[1753218845323,2.69888143,3705.3,3704.9,0.8097]
[1753218845498,3.24879423,3705.4,3704.9,0.9441]
[1753218845808,2.69883919,3705.3,3705.0,0.4595]
[1753218845974,0.55,3705.4,3704.9,0.9441]
[1753218846175,0.1344,3705.5,3705.1,2.6989703]
[1753218846411,0.1344,3705.5,3705.2,0.4595]
[1753218847480,0.1344,3705.5,3705.1,2.69893075]
[1753218847680,0.1344,3705.5,3705.3,0.4595]
[1753218847890,0.38088895,3707.5,3706.1,2.69820289]
[1753218847891,0.1344,3706.5,3706.1,2.69820289]
[1753218848093,2.69786318,3706.7,3706.2,0.1344]
[1753218848630,0.002,3706.3,3706.2,0.1344]
[1753218849413,0.002,3706.3,3706.2,0.5939]
[1753218849777,0.002,3706.3,3706.2,3.29208142]
[1753218849976,0.002,3706.3,3706.2,0.5939]
[1753218850414,0.002,3706.3,3706.2,3.29208142]
[1753218850615,0.002,3706.3,3706.2,3.96718639]
[1753218851832,0.002,3706.3,3706.2,0.1344]
[1753218851998,0.002,3706.3,3706.0,1.2202]
[1753218852183,0.002,3706.3,3706.2,2.83258142]
[1753218852387,0.002,3706.3,3706.2,0.1344]
[1753218852705,0.002,3706.3,3706.2,3.29208142]
[1753218853600,0.002,3706.3,3706.2,2.83258142]
[1753218854215,0.002,3706.3,3706.2,0.1344]
[1753218855446,0.002,3706.3,3706.2,2.83258142]
[1753218855737,0.002,3706.3,3706.2,3.29208142]
[1753218856223,0.002,3706.3,3706.2,0.5939]
[1753218856625,0.002,3706.3,3706.2,0.1344]
[1753218860117,0.002,3706.3,3706.2,3.30398142]
[1753218860312,0.002,3706.3,3706.2,3.98027903]
[1753218861029,0.002,3706.3,3706.2,1.28209761]
[1753218861223,0.002,3706.3,3706.2,3.98027903]